[Event "Live Chess"]
[Site "Chess.com"]
[Date "2024.06.01"]
[Round "-"]
[White "imchessive"]
[Black "nigelst"]
[Result "1-0"]
[WhiteElo "1597"]
[BlackElo "1632"]
[TimeControl "300"]
[EndTime "12:56:31 PDT"]
[Termination "imchessive won by resignation"]

1. d4 {[%clk 0:04:58.6]} 1... Nf6 {[%clk 0:04:58.2]} 2. c4 {[%clk 0:04:57.8]}
2... e6 {[%clk 0:04:57.4]} 3. Nf3 {[%clk 0:04:56.7]} 3... Bb4+ {[%clk
0:04:56.8]} 4. Nc3 {[%clk 0:04:55.7]} 4... O-O {[%clk 0:04:54.6]} 5. g3 {[%clk
0:04:54.7]} 5... c5 {[%clk 0:04:52.4]} 6. Bg2 {[%clk 0:04:47.5]} 6... d6 {[%clk
0:04:48.1]} 7. Bf4 {[%clk 0:04:43.9]} 7... Bxc3+ {[%clk 0:04:44.6]} 8. bxc3
{[%clk 0:04:42.5]} 8... Qa5 {[%clk 0:04:40]} 9. Qb3 {[%clk 0:04:19.6]} 9... Rd8
{[%clk 0:04:23.5]} 10. Rb1 {[%clk 0:04:12.5]} 10... Ne4 {[%clk 0:04:18.5]} 11.
O-O {[%clk 0:03:52.6]} 11... Qxc3 {[%clk 0:04:13.6]} 12. Qb5 {[%clk 0:03:32.3]}
12... a6 {[%clk 0:04:03]} 13. Qb6 {[%clk 0:03:25.4]} 13... Nd7 {[%clk
0:03:59.8]} 14. Qxd8+ {[%clk 0:03:23.4]} 14... Nf8 {[%clk 0:03:56.1]} 15. Ng5
{[%clk 0:03:18.2]} 15... Nxg5 {[%clk 0:03:44.1]} 16. Bxd6 {[%clk 0:02:54.5]}
16... h6 {[%clk 0:03:40.6]} 17. Qxf8+ {[%clk 0:02:39]} 17... Kh7 {[%clk
0:03:39.5]} 18. h4 {[%clk 0:02:33.1]} 1-0

[Event "Live Chess"]
[Site "Chess.com"]
[Date "2024.06.01"]
[Round "-"]
[White "GoldsmanB"]
[Black "NottheBishopSacrifice"]
[Result "0-1"]
[WhiteElo "1073"]
[BlackElo "2263"]
[TimeControl "300"]
[EndTime "12:56:39 PDT"]
[Termination "NottheBishopSacrifice won by resignation"]

1. d4 {[%clk 0:04:58.3]} 1... d5 {[%clk 0:04:58.1]} 2. Bf4 {[%clk 0:04:56.6]}
2... Nf6 {[%clk 0:04:56.3]} 3. e3 {[%clk 0:04:54.3]} 3... c5 {[%clk 0:04:55]} 4.
Nf3 {[%clk 0:04:52]} 4... Nc6 {[%clk 0:04:54.5]} 5. c3 {[%clk 0:04:50.6]} 5...
Qb6 {[%clk 0:04:51.7]} 6. b3 {[%clk 0:04:47.9]} 6... Bf5 {[%clk 0:04:49.7]} 7.
Nbd2 {[%clk 0:04:45]} 7... e6 {[%clk 0:04:48.2]} 8. Be2 {[%clk 0:04:43.3]} 8...
Be7 {[%clk 0:04:46.7]} 9. O-O {[%clk 0:04:42.1]} 9... O-O {[%clk 0:04:46.3]} 10.
c4 {[%clk 0:04:34.8]} 10... cxd4 {[%clk 0:04:42.9]} 11. Nxd4 {[%clk 0:04:27.7]}
11... Nxd4 {[%clk 0:04:41.8]} 12. exd4 {[%clk 0:04:26.3]} 12... Qxd4 {[%clk
0:04:41.5]} 13. Be3 {[%clk 0:04:19.6]} 13... Qe5 {[%clk 0:04:40.2]} 14. Nf3
{[%clk 0:04:13.1]} 14... Qc7 {[%clk 0:04:37.6]} 15. cxd5 {[%clk 0:04:07.9]}
15... Nxd5 {[%clk 0:04:34.5]} 16. Rc1 {[%clk 0:04:06.1]} 16... Nxe3 {[%clk
0:04:27.1]} 17. Rxc7 {[%clk 0:03:58]} 17... Nxd1 {[%clk 0:04:24.8]} 18. Rxd1
{[%clk 0:03:57.9]} 18... Bf6 {[%clk 0:04:19.4]} 19. Rdd7 {[%clk 0:03:51.8]}
19... Be4 {[%clk 0:04:15.7]} 20. Nd2 {[%clk 0:03:41.8]} 20... Bc6 {[%clk
0:04:12.3]} 21. Rd6 {[%clk 0:03:33.2]} 21... Be5 {[%clk 0:04:10.3]} 22. Rdxc6
{[%clk 0:03:27.7]} 22... bxc6 {[%clk 0:04:07.1]} 23. Rxc6 {[%clk 0:03:25.2]}
23... Rac8 {[%clk 0:04:06.6]} 24. Rxc8 {[%clk 0:03:22.4]} 24... Rxc8 {[%clk
0:04:02.8]} 25. g3 {[%clk 0:03:20.5]} 25... Rc2 {[%clk 0:04:00.3]} 0-1

[Event "Live Chess"]
[Site "Chess.com"]
[Date "2024.06.01"]
[Round "-"]
[White "booktrunk"]
[Black "blunderabit"]
[Result "1-0"]
[WhiteElo "1388"]
[BlackElo "1810"]
[TimeControl "300"]
[EndTime "12:56:56 PDT"]
[Termination "booktrunk won on time"]

1. d4 {[%clk 0:04:48.3]} 1... d5 {[%clk 0:04:57.4]} 2. Nc3 {[%clk 0:04:34.6]}
2... Nf6 {[%clk 0:04:54.5]} 3. Bf4 {[%clk 0:04:30.9]} 3... c6 {[%clk 0:04:48.2]}
4. e3 {[%clk 0:04:24.6]} 4... Bf5 {[%clk 0:04:42.4]} 5. h4 {[%clk 0:04:23.7]}
5... e6 {[%clk 0:04:35.9]} 6. Bd3 {[%clk 0:04:20.9]} 6... Bb4 {[%clk 0:04:32.9]}
7. a3 {[%clk 0:04:18.8]} 7... Bxc3+ {[%clk 0:04:30.9]} 8. bxc3 {[%clk
0:04:18.7]} 8... Qa5 {[%clk 0:04:25.9]} 9. Qd2 {[%clk 0:04:14.1]} 9... Ne4
{[%clk 0:04:24.3]} 10. Bxe4 {[%clk 0:04:12.5]} 10... Bxe4 {[%clk 0:04:22.2]} 11.
f3 {[%clk 0:04:09.7]} 11... Bf5 {[%clk 0:03:56.9]} 12. Ne2 {[%clk 0:04:08.5]}
12... h6 {[%clk 0:03:52.1]} 13. Ng3 {[%clk 0:03:54.2]} 13... Bh7 {[%clk
0:03:48.4]} 14. Nh5 {[%clk 0:03:53]} 14... O-O {[%clk 0:03:42.3]} 15. g4 {[%clk
0:03:45.9]} 15... Nd7 {[%clk 0:03:36.1]} 16. g5 {[%clk 0:03:44.2]} 16... hxg5
{[%clk 0:03:33.7]} 17. Bxg5 {[%clk 0:03:42.3]} 17... f6 {[%clk 0:03:16.8]} 18.
Bf4 {[%clk 0:03:22.9]} 18... e5 {[%clk 0:03:10.6]} 19. dxe5 {[%clk 0:03:14.4]}
19... fxe5 {[%clk 0:02:36.6]} 20. Bg5 {[%clk 0:03:05.3]} 20... Rae8 {[%clk
0:02:20.3]} 21. Rg1 {[%clk 0:03:02.6]} 21... Rf7 {[%clk 0:02:16.8]} 22. Bh6
{[%clk 0:02:39.4]} 22... g6 {[%clk 0:02:06.4]} 23. Ng3 {[%clk 0:02:29]} 23...
Kh8 {[%clk 0:01:50.4]} 24. h5 {[%clk 0:02:14.2]} 24... Rg8 {[%clk 0:01:47.6]}
25. hxg6 {[%clk 0:01:56.4]} 25... Rxg6 {[%clk 0:01:45.2]} 26. e4 {[%clk
0:01:53.7]} 26... d4 {[%clk 0:01:35]} 27. c4 {[%clk 0:01:37.9]} 27... Qxd2+
{[%clk 0:01:30.8]} 28. Kxd2 {[%clk 0:01:35.7]} 28... Rxf3 {[%clk 0:01:30.3]} 29.
Nf5 {[%clk 0:01:28.5]} 29... Rxg1 {[%clk 0:01:20.9]} 30. Rxg1 {[%clk 0:01:25.9]}
30... Bxf5 {[%clk 0:01:19.1]} 31. exf5 {[%clk 0:01:22.5]} 31... Rxf5 {[%clk
0:01:18.6]} 32. Rg7 {[%clk 0:01:18.7]} 32... Nc5 {[%clk 0:01:11.8]} 33. Re7
{[%clk 0:01:11.9]} 33... e4 {[%clk 0:00:59.3]} 34. Bg7+ {[%clk 0:01:07.9]} 34...
Kg8 {[%clk 0:00:56.6]} 35. Bxd4 {[%clk 0:01:06.3]} 35... a5 {[%clk 0:00:40.4]}
36. Ke3 {[%clk 0:01:00.6]} 36... Rf3+ {[%clk 0:00:34.1]} 37. Ke2 {[%clk
0:00:59.6]} 37... Na4 {[%clk 0:00:27]} 38. Rxe4 {[%clk 0:00:55.8]} 38... Rxa3
{[%clk 0:00:24.2]} 39. Rg4+ {[%clk 0:00:52.9]} 39... Kf8 {[%clk 0:00:18.6]} 40.
Rg7 {[%clk 0:00:49.7]} 40... b5 {[%clk 0:00:12.2]} 41. cxb5 {[%clk 0:00:41.8]}
41... cxb5 {[%clk 0:00:11.3]} 42. Bc5+ {[%clk 0:00:38.4]} 42... Nxc5 {[%clk
0:00:08.8]} 43. Rg5 {[%clk 0:00:35]} 43... Rc3 {[%clk 0:00:06.7]} 44. Kd2 {[%clk
0:00:32.9]} 44... Rc4 {[%clk 0:00:05.7]} 45. c3 {[%clk 0:00:31.3]} 45... a4
{[%clk 0:00:05.3]} 46. Rg1 {[%clk 0:00:28.9]} 46... a3 {[%clk 0:00:03.3]} 47.
Ra1 {[%clk 0:00:28.3]} 47... Nb3+ {[%clk 0:00:01.8]} 48. Kc2 {[%clk 0:00:27.4]}
48... Nxa1+ {[%clk 0:00:00.9]} 49. Kb1 {[%clk 0:00:27.3]} 1-0

[Event "Live Chess"]
[Site "Chess.com"]
[Date "2024.06.01"]
[Round "-"]
[White "Sweet-O"]
[Black "Kyrylo7770"]
[Result "1-0"]
[WhiteElo "1566"]
[BlackElo "1672"]
[TimeControl "300"]
[EndTime "12:57:15 PDT"]
[Termination "Sweet-O won by checkmate"]

1. d4 {[%clk 0:04:58.8]} 1... d5 {[%clk 0:04:59.1]} 2. Nc3 {[%clk 0:04:58.4]}
2... Bg4 {[%clk 0:04:58.6]} 3. Bf4 {[%clk 0:04:57.8]} 3... e6 {[%clk 0:04:57.6]}
4. f3 {[%clk 0:04:57.1]} 4... Bh5 {[%clk 0:04:56.6]} 5. g4 {[%clk 0:04:56.6]}
5... Bg6 {[%clk 0:04:55.9]} 6. h4 {[%clk 0:04:56.1]} 6... h5 {[%clk 0:04:55]} 7.
g5 {[%clk 0:04:53.7]} 7... Bd6 {[%clk 0:04:54]} 8. Nh3 {[%clk 0:04:50.5]} 8...
Bxf4 {[%clk 0:04:52.9]} 9. Nxf4 {[%clk 0:04:50.4]} 9... Qd6 {[%clk 0:04:52.5]}
10. e3 {[%clk 0:04:49.4]} 10... Bf5 {[%clk 0:04:50.7]} 11. Bd3 {[%clk
0:04:48.3]} 11... Bxd3 {[%clk 0:04:49.3]} 12. Qxd3 {[%clk 0:04:48.2]} 12... g6
{[%clk 0:04:48.9]} 13. O-O-O {[%clk 0:04:46.1]} 13... Nc6 {[%clk 0:04:47.9]} 14.
Nb5 {[%clk 0:04:43.8]} 14... Qb4 {[%clk 0:04:45.9]} 15. Nxc7+ {[%clk 0:04:39.3]}
15... Ke7 {[%clk 0:04:44.6]} 16. Nxa8 {[%clk 0:04:35.3]} 16... a5 {[%clk
0:04:43.8]} 17. Nc7 {[%clk 0:04:33.4]} 17... a4 {[%clk 0:04:42.3]} 18. Qb5
{[%clk 0:04:32.3]} 18... Qxb5 {[%clk 0:04:32.8]} 19. Nxb5 {[%clk 0:04:32.2]}
19... Nb4 {[%clk 0:04:32.3]} 20. a3 {[%clk 0:04:30]} 20... Nc6 {[%clk
0:04:30.8]} 21. e4 {[%clk 0:04:26.6]} 21... dxe4 {[%clk 0:04:29.7]} 22. fxe4
{[%clk 0:04:26.5]} 22... Kd7 {[%clk 0:04:29.1]} 23. d5 {[%clk 0:04:25.9]} 23...
exd5 {[%clk 0:04:28.1]} 24. exd5 {[%clk 0:04:22.5]} 24... Ne5 {[%clk 0:04:26.4]}
25. Rhe1 {[%clk 0:04:16.6]} 25... Nc4 {[%clk 0:04:22.7]} 26. b3 {[%clk
0:04:06.3]} 26... Nb6 {[%clk 0:04:20.7]} 27. b4 {[%clk 0:03:57.5]} 27... Ne7
{[%clk 0:04:19.2]} 28. d6 {[%clk 0:03:54.9]} 28... Nf5 {[%clk 0:04:18]} 29. Nd5
{[%clk 0:03:48.2]} 29... Nc4 {[%clk 0:04:16]} 30. Nf6+ {[%clk 0:03:44.9]} 30...
Kc6 {[%clk 0:04:14.7]} 31. Nd4+ {[%clk 0:03:33.3]} 31... Kxd6 {[%clk 0:04:13.5]}
32. Nxf5+ {[%clk 0:03:29.8]} 32... Kc6 {[%clk 0:04:11.9]} 33. Nd4+ {[%clk
0:03:15.2]} 33... Kb6 {[%clk 0:04:09]} 34. Nd5+ {[%clk 0:03:00.5]} 34... Ka7
{[%clk 0:04:07.3]} 35. Nb5+ {[%clk 0:02:57.3]} 35... Ka6 {[%clk 0:04:06]} 36.
Ndc7+ {[%clk 0:02:52.2]} 36... Kb6 {[%clk 0:04:04.9]} 37. Re7 {[%clk 0:02:51.1]}
37... Rc8 {[%clk 0:03:49.1]} 38. Rxf7 {[%clk 0:02:48.5]} 38... Ne3 {[%clk
0:03:44.9]} 39. Rd6# {[%clk 0:02:45.7]} 1-0

[Event "Live Chess"]
[Site "Chess.com"]
[Date "2024.06.01"]
[Round "-"]
[White "KeithArkell"]
[Black "KwikPhoenix"]
[Result "0-1"]
[WhiteElo "2457"]
[BlackElo "2463"]
[TimeControl "300"]
[EndTime "12:57:16 PDT"]
[Termination "KwikPhoenix won by resignation"]

1. d4 {[%clk 0:04:58.1]} 1... f5 {[%clk 0:04:58.7]} 2. Nf3 {[%clk 0:04:57.5]}
2... Nf6 {[%clk 0:04:57.7]} 3. Bg5 {[%clk 0:04:56.7]} 3... e6 {[%clk 0:04:56.8]}
4. Nbd2 {[%clk 0:04:55.1]} 4... h6 {[%clk 0:04:55.3]} 5. Bxf6 {[%clk 0:04:54.1]}
5... Qxf6 {[%clk 0:04:54.7]} 6. e4 {[%clk 0:04:53.8]} 6... d6 {[%clk 0:04:52]}
7. e5 {[%clk 0:04:52.7]} 7... Qd8 {[%clk 0:04:50.5]} 8. Bc4 {[%clk 0:04:49.8]}
8... d5 {[%clk 0:04:44.9]} 9. Bb3 {[%clk 0:04:49]} 9... c5 {[%clk 0:04:42.2]}
10. c3 {[%clk 0:04:47.7]} 10... Nc6 {[%clk 0:04:40.5]} 11. h4 {[%clk 0:04:46]}
11... Be7 {[%clk 0:04:38.6]} 12. h5 {[%clk 0:04:44.9]} 12... Qb6 {[%clk
0:04:33.3]} 13. dxc5 {[%clk 0:04:39.7]} 13... Bxc5 {[%clk 0:04:32.6]} 14. O-O
{[%clk 0:04:38.9]} 14... O-O {[%clk 0:04:29.7]} 15. Nh4 {[%clk 0:04:37.9]} 15...
Nxe5 {[%clk 0:04:21.1]} 16. Ndf3 {[%clk 0:04:32.8]} 16... Nxf3+ {[%clk
0:03:52.4]} 17. Qxf3 {[%clk 0:04:24.2]} 17... Bd7 {[%clk 0:03:50.9]} 18. Ng6
{[%clk 0:04:23.1]} 18... Rf6 {[%clk 0:03:49.9]} 19. Rae1 {[%clk 0:04:21]} 19...
Be8 {[%clk 0:03:46]} 20. Re2 {[%clk 0:04:05.7]} 20... Bb5 {[%clk 0:03:22.4]} 21.
Rfe1 {[%clk 0:04:05.6]} 21... Bxe2 {[%clk 0:03:21.5]} 22. Rxe2 {[%clk
0:04:01.4]} 22... a5 {[%clk 0:03:20.2]} 23. Rxe6 {[%clk 0:03:57.4]} 23... Rxe6
{[%clk 0:02:25.5]} 24. Qxd5 {[%clk 0:03:56.4]} 24... Bxf2+ {[%clk 0:02:08.9]}
25. Kf1 {[%clk 0:03:54]} 25... Re8 {[%clk 0:01:49.9]} 26. Nf4 {[%clk 0:03:50.9]}
26... Bg3 {[%clk 0:01:35.6]} 27. Ne2 {[%clk 0:03:22.6]} 0-1

[Event "Live Chess"]
[Site "Chess.com"]
[Date "2024.06.01"]
[Round "-"]
[White "Ferrarifan27"]
[Black "ACM42"]
[Result "1-0"]
[WhiteElo "2067"]
[BlackElo "2198"]
[TimeControl "300"]
[EndTime "12:57:17 PDT"]
[Termination "Ferrarifan27 won on time"]

1. e4 {[%clk 0:04:50.9]} 1... e6 {[%clk 0:04:57.8]} 2. d4 {[%clk 0:04:41.5]}
2... d5 {[%clk 0:04:54.3]} 3. Nc3 {[%clk 0:04:38.3]} 3... Bb4 {[%clk 0:04:52.5]}
4. e5 {[%clk 0:04:36.5]} 4... c5 {[%clk 0:04:51.3]} 5. a3 {[%clk 0:04:34.6]}
5... Bxc3+ {[%clk 0:04:49.9]} 6. bxc3 {[%clk 0:04:34.5]} 6... Ne7 {[%clk
0:04:49.1]} 7. Nf3 {[%clk 0:04:32.8]} 7... b6 {[%clk 0:04:45.7]} 8. Bb5+ {[%clk
0:04:29.4]} 8... Bd7 {[%clk 0:04:41.6]} 9. a4 {[%clk 0:04:28.6]} 9... Bxb5
{[%clk 0:04:37.5]} 10. axb5 {[%clk 0:04:27.3]} 10... a5 {[%clk 0:04:28.1]} 11.
bxa6 {[%clk 0:04:25.2]} 11... Rxa6 {[%clk 0:04:26.1]} 12. Rxa6 {[%clk
0:04:17.3]} 12... Nxa6 {[%clk 0:04:25.7]} 13. Qe2 {[%clk 0:04:16.1]} 13... Nc7
{[%clk 0:04:19.8]} 14. O-O {[%clk 0:04:13]} 14... O-O {[%clk 0:04:16.9]} 15. Bg5
{[%clk 0:04:09.1]} 15... h6 {[%clk 0:04:13.4]} 16. Bh4 {[%clk 0:04:05.3]} 16...
Qd7 {[%clk 0:04:05.2]} 17. Rb1 {[%clk 0:04:02.4]} 17... Nc8 {[%clk 0:03:48]} 18.
h3 {[%clk 0:03:52]} 18... Qc6 {[%clk 0:03:28.6]} 19. g4 {[%clk 0:03:48.8]} 19...
Na7 {[%clk 0:03:11.4]} 20. Be7 {[%clk 0:03:34.7]} 20... Re8 {[%clk 0:03:09.2]}
21. Bd6 {[%clk 0:03:33.2]} 21... Ncb5 {[%clk 0:03:02.5]} 22. g5 {[%clk
0:03:22.3]} 22... h5 {[%clk 0:02:50.8]} 23. Ra1 {[%clk 0:03:09.5]} 23... Nc8
{[%clk 0:02:42.2]} 24. g6 {[%clk 0:02:56.8]} 24... fxg6 {[%clk 0:02:35]} 25. Nh4
{[%clk 0:02:55.2]} 25... Nxc3 {[%clk 0:02:16.8]} 26. Qd3 {[%clk 0:02:50.1]}
26... cxd4 {[%clk 0:02:01]} 27. Qxg6 {[%clk 0:02:48]} 27... Nxd6 {[%clk
0:01:48.6]} 28. exd6 {[%clk 0:02:47]} 28... Nb5 {[%clk 0:01:28.1]} 29. Qxh5
{[%clk 0:02:34.6]} 29... Nxd6 {[%clk 0:01:09.9]} 30. Ng6 {[%clk 0:02:33]} 30...
Nf7 {[%clk 0:00:41.2]} 31. Ra7 {[%clk 0:02:17.8]} 31... Qd6 {[%clk 0:00:27.6]}
32. Ne5 {[%clk 0:01:25.4]} 32... Qxe5 {[%clk 0:00:15.1]} 33. Qxf7+ {[%clk
0:01:23.8]} 33... Kh7 {[%clk 0:00:12.3]} 34. Qxe8 {[%clk 0:01:22.7]} 34... Qe1+
{[%clk 0:00:09.7]} 35. Kg2 {[%clk 0:01:19]} 35... Qe4+ {[%clk 0:00:08.2]} 36.
Kg3 {[%clk 0:01:11]} 36... Qe5+ {[%clk 0:00:05]} 37. Kg2 {[%clk 0:01:04.1]}
37... Qe4+ {[%clk 0:00:03.1]} 38. f3 {[%clk 0:01:02.8]} 1-0

[Event "Live Chess"]
[Site "Chess.com"]
[Date "2024.06.01"]
[Round "-"]
[White "Grace6363"]
[Black "PureDashingOctopus"]
[Result "0-1"]
[WhiteElo "1149"]
[BlackElo "2261"]
[TimeControl "300"]
[EndTime "12:57:22 PDT"]
[Termination "PureDashingOctopus won by checkmate"]

1. d4 {[%clk 0:04:54.7]} 1... Nf6 {[%clk 0:04:58.7]} 2. c4 {[%clk 0:04:53.7]}
2... g6 {[%clk 0:04:57.2]} 3. Nc3 {[%clk 0:04:52.7]} 3... d5 {[%clk 0:04:56]} 4.
c5 {[%clk 0:04:48.7]} 4... Bg7 {[%clk 0:04:53.9]} 5. Nf3 {[%clk 0:04:48.1]} 5...
O-O {[%clk 0:04:52.7]} 6. Bg5 {[%clk 0:04:47.4]} 6... b6 {[%clk 0:04:51.8]} 7.
e3 {[%clk 0:04:46.7]} 7... bxc5 {[%clk 0:04:50.7]} 8. dxc5 {[%clk 0:04:45.5]}
8... h6 {[%clk 0:04:49.4]} 9. Bh4 {[%clk 0:04:44.4]} 9... g5 {[%clk 0:04:48]}
10. Bg3 {[%clk 0:04:43.2]} 10... Ne4 {[%clk 0:04:47.6]} 11. Nd4 {[%clk
0:04:33.2]} 11... Nxc5 {[%clk 0:04:43.3]} 12. Qc2 {[%clk 0:04:17.1]} 12... e5
{[%clk 0:04:39.9]} 13. Nf5 {[%clk 0:04:10]} 13... Bxf5 {[%clk 0:04:35.9]} 14.
Qxf5 {[%clk 0:04:09.4]} 14... d4 {[%clk 0:04:34.1]} 15. exd4 {[%clk 0:04:02.6]}
15... exd4 {[%clk 0:04:30.1]} 16. Qxc5 {[%clk 0:03:56.4]} 16... dxc3 {[%clk
0:04:26.4]} 17. bxc3 {[%clk 0:03:55]} 17... Re8+ {[%clk 0:04:24.2]} 18. Be2
{[%clk 0:03:53.8]} 18... Qd3 {[%clk 0:04:15.8]} 19. Be5 {[%clk 0:02:51.8]} 19...
Rxe5 {[%clk 0:03:50]} 20. Qe3 {[%clk 0:02:23.6]} 20... Rxe3 {[%clk 0:03:47.3]}
21. fxe3 {[%clk 0:02:23]} 21... Qxe3 {[%clk 0:03:45.8]} 22. Rd1 {[%clk
0:02:18.7]} 22... Bxc3+ {[%clk 0:03:43.8]} 23. Kf1 {[%clk 0:02:09.6]} 23... Bd4
{[%clk 0:03:40.4]} 24. Ke1 {[%clk 0:01:59.9]} 24... Nd7 {[%clk 0:03:34.1]} 25.
Rf1 {[%clk 0:01:57.7]} 25... Re8 {[%clk 0:03:31.9]} 26. Rd2 {[%clk 0:01:51.3]}
26... Bc3 {[%clk 0:03:29.4]} 27. Rf3 {[%clk 0:01:42.1]} 27... Qxe2# {[%clk
0:03:27.2]} 0-1

[Event "Live Chess"]
[Site "Chess.com"]
[Date "2024.06.01"]
[Round "-"]
[White "Duke_of_Bebington"]
[Black "TJ-W"]
[Result "1-0"]
[WhiteElo "1592"]
[BlackElo "1565"]
[TimeControl "300"]
[EndTime "12:57:31 PDT"]
[Termination "Duke_of_Bebington won on time"]

1. e4 {[%clk 0:04:56.7]} 1... e5 {[%clk 0:04:57.9]} 2. Nf3 {[%clk 0:04:54.9]}
2... Nc6 {[%clk 0:04:56.3]} 3. Bc4 {[%clk 0:04:53.5]} 3... Bc5 {[%clk
0:04:50.5]} 4. b4 {[%clk 0:04:52.4]} 4... Bxb4 {[%clk 0:04:43.3]} 5. c3 {[%clk
0:04:51.3]} 5... Ba5 {[%clk 0:04:38.3]} 6. Qb3 {[%clk 0:04:45.1]} 6... Nf6
{[%clk 0:03:49.6]} 7. Bxf7+ {[%clk 0:04:40.2]} 7... Kf8 {[%clk 0:03:47.4]} 8.
Bd5 {[%clk 0:04:31.9]} 8... Nxd5 {[%clk 0:03:43.1]} 9. exd5 {[%clk 0:04:30.4]}
9... Ne7 {[%clk 0:03:38.2]} 10. Nxe5 {[%clk 0:04:26.8]} 10... d6 {[%clk
0:03:33.8]} 11. Nc4 {[%clk 0:04:17.7]} 11... Bb6 {[%clk 0:03:28]} 12. Nxb6
{[%clk 0:04:16.2]} 12... axb6 {[%clk 0:03:25.8]} 13. O-O {[%clk 0:04:15.6]}
13... g6 {[%clk 0:03:17.5]} 14. d4 {[%clk 0:04:11.8]} 14... Kf7 {[%clk
0:03:15.6]} 15. Bg5 {[%clk 0:04:07.6]} 15... Bf5 {[%clk 0:03:11]} 16. Nd2 {[%clk
0:03:53.7]} 16... Qd7 {[%clk 0:03:06.8]} 17. Nf3 {[%clk 0:03:44.1]} 17... Rhe8
{[%clk 0:02:55.8]} 18. Rfe1 {[%clk 0:03:38]} 18... Kg7 {[%clk 0:02:52.5]} 19.
Nh4 {[%clk 0:03:27.6]} 19... Ng8 {[%clk 0:02:45.5]} 20. Nxf5+ {[%clk 0:03:09]}
20... Qxf5 {[%clk 0:02:41.5]} 21. Be3 {[%clk 0:03:06.6]} 21... Nf6 {[%clk
0:02:36.1]} 22. c4 {[%clk 0:03:04.2]} 22... Ng4 {[%clk 0:02:23.4]} 23. h3 {[%clk
0:02:55.1]} 23... Nxe3 {[%clk 0:02:18.8]} 24. Rxe3 {[%clk 0:02:55]} 24... Rxe3
{[%clk 0:02:15.3]} 25. Qxe3 {[%clk 0:02:53.9]} 25... Qf6 {[%clk 0:02:09]} 26.
Re1 {[%clk 0:02:51.2]} 26... c5 {[%clk 0:01:45.1]} 27. dxc5 {[%clk 0:02:35.2]}
27... bxc5 {[%clk 0:01:42.2]} 28. Qe7+ {[%clk 0:02:33.4]} 28... Qxe7 {[%clk
0:01:33.3]} 29. Rxe7+ {[%clk 0:02:33.3]} 29... Kf6 {[%clk 0:01:32.2]} 30. Rxb7
{[%clk 0:02:32.6]} 30... Rxa2 {[%clk 0:01:29.9]} 31. Rxh7 {[%clk 0:02:25.7]}
31... Rc2 {[%clk 0:01:28]} 32. Rh4 {[%clk 0:02:23.9]} 32... g5 {[%clk
0:01:22.5]} 33. Rg4 {[%clk 0:02:22.8]} 33... Ke5 {[%clk 0:01:18]} 34. f3 {[%clk
0:02:19]} 34... Kf5 {[%clk 0:01:10.7]} 35. Kh2 {[%clk 0:02:17.9]} 35... Kf6
{[%clk 0:01:05]} 36. Kg3 {[%clk 0:02:16.8]} 36... Kf5 {[%clk 0:01:03.3]} 37. h4
{[%clk 0:02:15.7]} 37... gxh4+ {[%clk 0:00:57.7]} 38. Rxh4 {[%clk 0:02:14.8]}
38... Rc3 {[%clk 0:00:56]} 39. Rf4+ {[%clk 0:02:10.4]} 39... Ke5 {[%clk
0:00:53.8]} 40. Kg4 {[%clk 0:02:03.5]} 40... Rc2 {[%clk 0:00:36.8]} 41. Re4+
{[%clk 0:01:59.3]} 41... Kf6 {[%clk 0:00:33.1]} 42. g3 {[%clk 0:01:58.7]} 42...
Ra2 {[%clk 0:00:28.6]} 43. Re6+ {[%clk 0:01:51.4]} 43... Kf7 {[%clk 0:00:25.8]}
44. Re4 {[%clk 0:01:45.1]} 44... Ra4 {[%clk 0:00:21.7]} 45. f4 {[%clk
0:01:44.7]} 45... Kf6 {[%clk 0:00:19.2]} 46. f5 {[%clk 0:01:42.8]} 46... Kf7
{[%clk 0:00:18]} 47. Kg5 {[%clk 0:01:41.8]} 47... Kg7 {[%clk 0:00:16.8]} 48. g4
{[%clk 0:01:41.2]} 48... Kf8 {[%clk 0:00:14.3]} 49. f6 {[%clk 0:01:40.2]} 49...
Ra7 {[%clk 0:00:13.2]} 50. Kf5 {[%clk 0:01:39.4]} 50... Rh7 {[%clk 0:00:11.1]}
51. g5 {[%clk 0:01:38.5]} 51... Rh3 {[%clk 0:00:09.3]} 52. Kg6 {[%clk
0:01:36.7]} 52... Rf3 {[%clk 0:00:07.7]} 53. Re6 {[%clk 0:01:32.1]} 53... Rf4
{[%clk 0:00:04]} 54. Rxd6 {[%clk 0:01:31.4]} 54... Re4 {[%clk 0:00:01.8]} 55.
Rd8+ {[%clk 0:01:29.2]} 55... Re8 {[%clk 0:00:01.4]} 56. Rxe8+ {[%clk
0:01:28.5]} 56... Kxe8 {[%clk 0:00:00.5]} 57. f7+ {[%clk 0:01:27.3]} 57... Kf8
{[%clk 0:00:00.4]} 58. Kh7 {[%clk 0:01:21.7]} 1-0